bitfinex/quotes_BTCUSD_20241023
["timestamp","ask_amount","ask_price","bid_price","bid_amount"]
[1729642872010,0.005,67152.0,67141.0,0.22203637]
[1729642872011,0.17030896,67149.0,67141.0,0.22203637]
[1729642872250,0.28944696,67149.0,67141.0,0.34118737]
[1729642872490,0.17030896,67149.0,67142.0,0.119149]
[1729642872716,0.17030896,67149.0,67143.0,0.119973]
[1729642872950,0.17230896,67149.0,67143.0,0.119973]
[1729642873221,0.002,67147.0,67144.0,0.1]
[1729642873453,0.17030896,67149.0,67144.0,0.119146]
[1729642873683,0.17030896,67149.0,67147.0,0.03]
[1729642873910,0.002,67150.0,67147.0,0.03]
[1729642876083,0.121136,67150.0,67147.0,0.03]
[1729642876298,0.002,67150.0,67147.0,0.03]
[1729642877199,0.001652,67149.0,67147.0,0.03]
[1729642881655,0.001652,67149.0,67147.0,0.149141]
[1729642881881,0.39434533,67148.0,67147.0,0.03]
[1729642882144,0.72538433,67148.0,67147.0,0.03]
[1729642882373,0.50334796,67148.0,67147.0,0.03]
[1729642883066,0.65230711,67148.0,67147.0,0.03]
[1729642883573,0.121145,67145.0,67144.0,0.000826]
[1729642883791,0.47700415,67145.0,67144.0,0.000826]
[1729642887975,0.48200415,67145.0,67144.0,0.000826]
[1729642889419,0.47700415,67145.0,67144.0,0.000826]
[1729642889644,0.333045,67145.0,67144.0,0.000826]
[1729642890321,0.005,67145.0,67144.0,0.000826]
[1729642890558,0.005,67145.0,67144.0,0.119972]
[1729642891522,0.82062207,67145.0,67144.0,0.000826]
[1729642891739,0.65231311,67145.0,67144.0,0.000826]
[1729642894514,1.04465844,67145.0,67144.0,0.000826]
[1729642894733,0.82262207,67145.0,67144.0,0.000826]
[1729642894958,0.65231311,67145.0,67144.0,0.000826]
[1729642895438,0.005,67145.0,67144.0,0.119972]
[1729642895681,0.005,67145.0,67144.0,0.000826]
[1729642896562,0.005,67145.0,67144.0,0.119972]
[1729642897680,0.005,67145.0,67144.0,0.000826]
[1729642902189,0.005,67145.0,67144.0,0.119972]
[1729642903293,0.00508,67145.0,67144.0,0.119972]
[1729642905095,0.00508,67145.0,67144.0,0.000826]
[1729642913163,0.124225,67145.0,67144.0,0.000826]
[1729642913410,0.228125,67145.0,67144.0,0.000826]
[1729642914079,0.230125,67145.0,67144.0,0.000826]
[1729642915442,0.228125,67145.0,67144.0,0.000826]
[1729642917232,0.18230896,67146.0,67145.0,5.66487233]
[1729642917453,0.30145196,67146.0,67145.0,5.66487233]
[1729642917672,0.38395196,67146.0,67145.0,5.66487233]
[1729642918128,0.53291111,67146.0,67145.0,5.66487233]
[1729642919260,0.53791111,67146.0,67145.0,5.66487233]
[1729642919953,0.55171824,67146.0,67145.0,5.66487233]
[1729642920401,0.65561824,67146.0,67145.0,5.66487233]
[1729642923737,0.6636006,67146.0,67145.0,5.66487233]
[1729642925322,0.81293906,67146.0,67145.0,5.66487233]
[1729642925547,0.98324802,67146.0,67145.0,5.66487233]
[1729642925761,0.84390956,67146.0,67145.0,5.66487233]
[1729642927364,0.6736006,67146.0,67145.0,5.66487233]
[1729642927601,0.48129164,67146.0,67145.0,5.66487233]
[1729642927848,0.31852536,67146.0,67145.0,5.66487233]
[1729642928058,0.32552536,67146.0,67145.0,5.66487233]
[1729642928286,0.317543,67146.0,67145.0,5.66487233]
[1729642928504,0.322543,67146.0,67145.0,5.66487233]
[1729642930501,0.47150215,67146.0,67145.0,5.66487233]
[1729642935676,0.208643,67146.0,67145.0,5.66487233]
[1729642935901,0.119143,67146.0,67145.0,5.66487233]
[1729642936144,0.124143,67146.0,67145.0,5.66569833]
[1729642936359,0.001652,67146.0,67145.0,5.66569833]
[1729642938061,0.120795,67146.0,67145.0,5.66569833]
[1729642938270,0.001652,67146.0,67145.0,5.66569833]
[1729642938914,0.001652,67146.0,67145.0,5.97884333]
[1729642939562,0.001652,67146.0,67145.0,5.85969833]
[1729642939793,0.001652,67146.0,67145.0,5.66569833]
[1729642940024,0.001652,67146.0,67145.0,5.78484333]
[1729642940237,0.001652,67146.0,67145.0,5.89684333]
[1729642940708,0.001652,67146.0,67145.0,5.97884333]
[1729642943953,0.001652,67146.0,67145.0,5.77769833]
[1729642944201,0.120795,67146.0,67145.0,5.66569833]
[1729642945876,0.122795,67146.0,67145.0,5.66569833]
[1729642946354,0.120795,67146.0,67145.0,5.66569833]
[1729642947347,0.122795,67146.0,67145.0,5.66569833]
[1729642947895,0.54716311,67146.0,67145.0,5.66569833]
[1729642948394,0.56852954,67146.0,67145.0,5.15047966]
[1729642949130,5.55974104,67146.0,67145.0,5.15047966]
[1729642950020,5.5873082,67146.0,67145.0,5.15047966]
[1729642950235,5.55974104,67146.0,67145.0,5.15047966]
[1729642950454,5.5873074,67146.0,67145.0,5.15047966]
[1729642951119,5.73626655,67146.0,67145.0,5.15047966]
[1729642952241,5.5873074,67146.0,67145.0,5.15047966]
[1729642952697,1.37599844,67146.0,67145.0,5.15047966]
[1729642953117,1.5463074,67146.0,67145.0,5.15047966]
[1729642953813,1.21499844,67146.0,67145.0,5.15047966]
[1729642954030,1.3853074,67146.0,67145.0,5.15047966]
[1729642954246,0.41199844,67146.0,67145.0,5.15047966]
[1729642955087,0.38821526,67146.0,67145.0,5.15047966]
[1729642955317,5.63229119,67146.0,67145.0,5.15047966]
[1729642955740,5.55511526,67146.0,67145.0,5.15047966]
[1729642955949,5.55311526,67146.0,67145.0,5.15047966]
[1729642956203,5.70407441,67146.0,67145.0,5.15047966]
[1729642956847,2.78811526,67146.0,67145.0,5.14857966]
[1729642957062,2.65311526,67146.0,67145.0,5.14857966]
[1729642957507,2.65309769,67146.0,67145.0,5.14857966]
[1729642958207,2.56633208,67146.0,67145.0,5.14857966]
[1729642958458,1.80933208,67146.0,67145.0,5.14857966]
[1729642959172,0.50509696,67146.0,67145.0,5.14857966]
[1729642959403,0.38119696,67146.0,67145.0,5.14857966]
[1729642960074,0.30609696,67146.0,67145.0,5.14857966]
[1729642960518,0.30109696,67146.0,67145.0,5.14857966]
[1729642960732,0.30609696,67146.0,67145.0,5.14857966]
[1729642961619,0.30609696,67146.0,67145.0,5.10717966]
[1729642962049,0.15713781,67146.0,67145.0,5.10717966]
[1729642962300,0.13837293,67146.0,67145.0,5.10717966]
[1729642962503,0.01422993,67146.0,67145.0,5.10717966]
[1729642962721,0.006652,67146.0,67145.0,5.10717966]
[1729642963674,0.125795,67146.0,67145.0,5.10717966]
[1729642963916,0.006652,67146.0,67145.0,5.10717966]
[1729642964148,0.001652,67146.0,67145.0,5.10717966]
[1729642966564,0.239929,67149.0,67145.0,5.29787966]
[1729642966565,0.001652,67149.0,67145.0,5.29787966]
[1729642966790,0.01,67164.0,67145.0,5.29787966]
[1729642966791,0.005,67167.0,67147.0,0.1]
[1729642967020,0.22203637,67168.0,67167.0,0.119106]
[1729642967710,0.119094,67174.0,67165.0,0.119109]
[1729642967966,0.119094,67174.0,67168.0,0.119104]
[1729642968209,0.01359056,67173.0,67170.0,0.1191]
[1729642968440,0.01359056,67173.0,67166.0,0.238215]
[1729642968674,0.01358563,67172.0,67168.0,0.119103]
[1729642968852,0.01358563,67172.0,67167.0,0.119105]
[1729642969109,0.005,67175.0,67168.0,0.119103]
[1729642969333,0.005,67175.0,67166.0,0.238215]
[1729642969334,0.23203637,67176.0,67167.0,0.238212]
[1729642969556,0.119091,67175.0,67167.0,0.119104]
[1729642969775,0.47021737,67176.0,67167.0,0.119104]
[1729642969994,0.47021737,67176.0,67165.0,0.17030896]
[1729642970211,0.47021737,67176.0,67168.0,0.119104]
[1729642970212,0.119095,67173.0,67168.0,0.119104]
[1729642970644,0.01358401,67172.0,67168.0,0.119104]
[1729642972428,0.01523601,67172.0,67168.0,0.119104]
[1729642972682,0.13433301,67172.0,67166.0,0.119106]
[1729642972908,0.119099,67171.0,67166.0,0.119106]
[1729642973349,0.01367714,67170.0,67166.0,0.119106]
[1729642974198,0.01367714,67170.0,67167.0,0.119106]
[1729642974410,0.13277714,67170.0,67165.0,0.119109]
[1729642974623,0.358944,67172.0,67166.0,0.119106]
[1729642974868,0.119099,67171.0,67166.0,0.119106]
[1729642975083,0.13277676,67171.0,67166.0,0.119106]
[1729642975785,0.119101,67170.0,67165.0,0.119108]
[1729642976199,0.01367591,67169.0,67163.0,0.1121]
[1729642976405,0.01367591,67169.0,67165.0,0.119108]
[1729642976687,0.119101,67170.0,67165.0,0.119108]
[1729642976893,0.01367899,67168.0,67163.0,0.1121]
[1729642977108,0.01367776,67169.0,67163.0,0.1121]
[1729642977326,0.12075,67172.0,67166.0,0.119107]
[1729642977327,0.119099,67171.0,67166.0,0.119107]
[1729642977536,0.01367776,67168.0,67166.0,0.119107]
[1729642977759,0.119099,67171.0,67166.0,0.119107]
[1729642977977,0.01367776,67167.0,67166.0,0.119107]
[1729642978192,0.119099,67171.0,67166.0,0.119107]
[1729642978422,0.01367868,67167.0,67166.0,0.119107]
[1729642978667,0.001652,67172.0,67166.0,0.22203637]
[1729642978905,0.001652,67172.0,67171.0,0.28940796]
[1729642979121,0.001652,67172.0,67171.0,0.61656711]
[1729642981538,0.001652,67172.0,67171.0,0.73536711]
[1729642981776,0.001652,67172.0,67171.0,0.76836711]
[1729642981988,0.001652,67172.0,67171.0,0.94554475]
[1729642982703,0.001652,67172.0,67171.0,0.77523579]
[1729642982959,0.001652,67172.0,67171.0,0.94554475]
[1729642983179,0.001652,67172.0,67171.0,0.77523579]
[1729642984377,0.22203637,67182.0,67181.0,0.219081]
[1729642984619,0.22203637,67182.0,67181.0,0.58814911]
[1729642984846,0.01375143,67182.0,67181.0,0.58814911]
[1729642985069,0.001652,67189.0,67188.0,0.219068]
[1729642985292,0.001652,67189.0,67188.0,0.53833611]
[1729642985693,0.01552961,67189.0,67188.0,0.53833611]
[1729642985932,0.001652,67189.0,67188.0,0.53833611]
[1729642987282,0.001652,67189.0,67188.0,0.65343611]
[1729642990781,0.001652,67189.0,67188.0,0.66031703]
[1729642991511,0.46509437,67211.0,67188.0,0.66031703]
[1729642991512,0.22203637,67211.0,67201.0,0.1]
[1729642991756,0.22203637,67211.0,67210.0,0.28933796]
[1729642992049,0.22203637,67211.0,67210.0,0.38933796]
[1729642992280,0.001686,67214.0,67213.0,0.119024]
[1729642993044,0.001686,67214.0,67213.0,0.26798315]
[1729642994035,0.0014729,67217.0,67215.0,0.41232996]
[1729642994279,0.0014729,67217.0,67215.0,0.56128911]
[1729642994521,0.0014729,67217.0,67215.0,0.59958958]
[1729642994746,0.0014729,67217.0,67215.0,0.56128911]
[1729642997634,0.0014729,67217.0,67215.0,0.69128911]
[1729642998373,0.0014729,67217.0,67215.0,0.76848911]
[1729642998851,0.0014729,67217.0,67215.0,0.63848911]
[1729643001725,0.0014729,67217.0,67215.0,0.76848911]
[1729643001939,0.0014729,67217.0,67215.0,0.63848911]
[1729643002601,0.0014729,67217.0,67215.0,0.36798015]
[1729643004861,0.0014729,67217.0,67215.0,0.49798015]
[1729643005368,0.0014729,67217.0,67215.0,0.63788015]
[1729643005551,0.0014729,67217.0,67215.0,0.81818911]
[1729643005792,0.0014729,67217.0,67215.0,0.62488015]
[1729643006019,0.0014729,67217.0,67215.0,0.66518911]
[1729643007592,0.0014729,67217.0,67215.0,0.68818911]
[1729643008935,0.0014729,67217.0,67215.0,0.81818911]
[1729643010048,0.0014729,67217.0,67215.0,0.70128911]
[1729643010287,0.0014729,67217.0,67215.0,0.67828911]
[1729643011837,0.0014729,67217.0,67215.0,0.54828911]
[1729643015778,0.0014729,67217.0,67215.0,0.53828911]
[1729643015986,0.0014729,67217.0,67215.0,0.54828911]
[1729643022042,0.0014729,67217.0,67215.0,0.94249807]
[1729643022482,0.0014729,67217.0,67215.0,0.77218911]
[1729643025068,0.0014729,67217.0,67215.0,0.94249807]
[1729643025489,0.0014729,67217.0,67215.0,0.77218911]
[1729643025973,0.0014729,67217.0,67215.0,0.89218911]
[1729643026410,0.22203637,67224.0,67220.0,5.51816606]
[1729643026648,0.22203637,67224.0,67220.0,5.66712521]
[1729643026849,0.001686,67227.0,67220.0,5.66712521]
[1729643028462,0.001686,67227.0,67220.0,5.83743417]
[1729643030820,0.001686,67227.0,67220.0,5.66712521]
[1729643031026,0.001686,67227.0,67220.0,5.673713]
[1729643031986,0.0805,67226.0,67220.0,5.50340404]
[1729643032203,0.0805,67226.0,67220.0,5.47381625]
[1729643036378,0.0805,67226.0,67220.0,5.51815019]
[1729643037576,0.0805,67226.0,67220.0,5.47381625]
[1729643037799,0.0805,67226.0,67220.0,5.56291796]
[1729643038034,0.0805,67226.0,67220.0,5.47381625]
[1729643038269,0.0805,67226.0,67220.0,5.56291796]
[1729643038490,0.0805,67226.0,67220.0,5.47381625]
[1729643039380,0.0805,67226.0,67220.0,5.58519339]
[1729643040669,0.0805,67226.0,67220.0,5.47381625]
[1729643041105,0.0805,67226.0,67220.0,5.58521745]
[1729643041563,0.0805,67226.0,67220.0,5.47381625]
[1729643042214,0.0805,67226.0,67220.0,5.58521504]
[1729643042950,0.0805,67226.0,67220.0,5.58521608]
[1729643043170,0.0805,67226.0,67220.0,5.47381625]
[1729643043389,0.0805,67226.0,67220.0,5.58521492]
[1729643043808,0.0805,67226.0,67220.0,5.47381625]
[1729643044016,0.0805,67226.0,67220.0,5.58521455]
[1729643045297,0.0805,67226.0,67220.0,5.50358625]
[1729643045517,0.0805,67226.0,67220.0,5.49681625]
[1729643047261,0.0805,67226.0,67220.0,5.60821367]
[1729643049979,0.0805,67226.0,67220.0,5.49681625]
[1729643050191,0.0805,67226.0,67220.0,5.6082207]
[1729643050611,0.0805,67226.0,67220.0,5.49681625]
[1729643050824,0.0805,67226.0,67220.0,5.6082207]
[1729643051040,0.0805,67226.0,67220.0,5.49681625]
[1729643051252,0.0805,67226.0,67220.0,5.6082207]
[1729643051495,0.0805,67226.0,67220.0,5.49681625]
[1729643052342,0.0805,67226.0,67220.0,5.60822829]
[1729643052775,0.0805,67226.0,67220.0,5.49681625]
[1729643057258,0.0805,67226.0,67220.0,5.60823456]
[1729643058509,0.0805,67226.0,67220.0,5.71701026]
[1729643058750,0.0805,67226.0,67220.0,5.57523456]
[1729643058994,0.0805,67226.0,67220.0,5.14042029]
[1729643058995,0.08195,67221.0,67220.0,5.14042029]
[1729643059204,0.1907257,67221.0,67220.0,5.0958451]
[1729643059648,0.08195,67221.0,67220.0,5.0958451]
[1729643060519,0.08195,67221.0,67220.0,5.1958451]
[1729643060724,0.08195,67221.0,67220.0,5.3148571]
[1729643074734,0.08075137,67221.0,67220.0,5.3148571]
[1729643078620,0.08075137,67221.0,67220.0,5.31473979]
[1729643078824,0.00045137,67221.0,67220.0,5.31473979]
[1729643079445,0.00045137,67221.0,67220.0,5.46369894]
[1729643079908,0.00045137,67221.0,67220.0,5.5150879]
[1729643080132,0.00045137,67221.0,67220.0,5.50823526]
[1729643080364,0.49032842,67221.0,67220.0,5.09572779]
[1729643080629,0.90167385,67221.0,67220.0,4.09582779]
[1729643080850,0.146015,67218.0,67217.0,0.000825]
[1729643081072,0.324819,67216.0,67215.0,0.000825]
[1729643081297,0.67148394,67216.0,67215.0,0.000825]
[1729643081510,0.7020363,67216.0,67215.0,0.000825]
[1729643083053,0.126021,67215.0,67214.0,0.000825]
[1729643083295,0.37981889,67215.0,67214.0,0.000825]
[1729643083508,0.39388385,67215.0,67214.0,0.000825]
[1729643084185,0.17706705,67208.0,67207.0,0.22203637]
[1729643084402,0.126033,67208.0,67207.0,0.22203637]
[1729643084618,0.17006705,67206.0,67200.0,0.18025089]
[1729643084831,0.002,67202.0,67200.0,0.18025089]
[1729643085263,0.005,67203.0,67197.0,0.1]
[1729643085490,0.002,67198.0,67197.0,0.219052]
[1729643085711,0.005,67203.0,67198.0,0.11905]
[1729643085919,0.005,67203.0,67200.0,0.119046]
[1729643086126,0.01406404,67202.0,67200.0,0.119046]
[1729643086575,0.01406404,67202.0,67198.0,0.11905]
[1729643087012,0.01406404,67202.0,67197.0,0.238105]
[1729643087196,0.01406404,67202.0,67199.0,0.119049]
[1729643087911,0.01406404,67202.0,67196.0,0.1]
[1729643088128,0.01406404,67202.0,67198.0,0.238101]
[1729643088342,0.01406404,67202.0,67200.0,0.119047]
[1729643088547,0.005,67203.0,67200.0,0.119047]
[1729643089025,0.55839552,67202.0,67174.0,0.0776]
[1729643089267,0.01,67181.0,67179.0,0.22203637]
[1729643089561,0.002,67188.0,67179.0,0.22203637]
[1729643089562,0.129083,67180.0,67179.0,0.22203637]
[1729643089739,0.129083,67180.0,67172.0,0.22203637]
[1729643089740,0.01,67177.0,67172.0,0.22203637]
[1729643089947,0.005,67176.0,67172.0,0.34113337]
[1729643090162,0.01246633,67176.0,67168.0,0.238208]
[1729643090382,0.01246633,67176.0,67169.0,0.238205]
[1729643090598,0.01246633,67176.0,67171.0,0.119098]
[1729643090814,0.01246633,67176.0,67165.0,0.22203637]
[1729643090815,0.00746633,67176.0,67175.0,0.119091]
[1729643091229,0.00746633,67176.0,67172.0,0.238191]
[1729643091230,0.01,67180.0,67172.0,0.238191]
[1729643091437,0.01,67180.0,67176.0,0.119089]
[1729643092134,0.00746805,67179.0,67176.0,0.119089]
[1729643093173,0.01,67180.0,67176.0,0.119089]
[1729643093390,0.01,67188.0,67177.0,0.14895915]
[1729643093605,0.005,67187.0,67180.0,0.119081]
[1729643093818,0.01446706,67187.0,67180.0,0.119081]
[1729643094323,0.00746706,67187.0,67181.0,0.11908]
[1729643094541,0.00746706,67187.0,67181.0,0.14895915]
[1729643094762,0.00746706,67187.0,67182.0,0.238159]
[1729643094972,0.01,67191.0,67182.0,0.238159]
[1729643095200,0.01,67191.0,67186.0,0.119071]
[1729643095416,0.00746953,67190.0,67182.0,0.238159]
[1729643095625,0.00746953,67190.0,67183.0,0.238155]
[1729643095835,0.00746953,67190.0,67185.0,0.119073]
[1729643096258,0.17006705,67189.0,67181.0,0.14895915]
[1729643096473,0.17006705,67189.0,67182.0,0.119078]
[1729643096681,0.17006705,67189.0,67181.0,0.14895915]
[1729643096900,0.00746953,67188.0,67184.0,0.119075]
[1729643097959,0.01,67191.0,67184.0,0.119075]
[1729643098185,0.00746953,67187.0,67184.0,0.119075]
[1729643098443,0.01,67191.0,67184.0,0.119075]
[1729643098670,0.00746953,67186.0,67183.0,0.119076]
[1729643098892,0.002,67190.0,67183.0,0.119076]
[1729643099424,0.00745201,67189.0,67183.0,0.119076]
[1729643099873,0.002,67190.0,67183.0,0.119076]
[1729643100091,0.00742898,67188.0,67183.0,0.119076]
[1729643100294,0.012,67191.0,67183.0,0.119076]
[1729643100504,0.00742898,67187.0,67183.0,0.119076]
[1729643100716,0.002,67190.0,67183.0,0.119076]
[1729643100942,0.00742898,67186.0,67183.0,0.119076]
[1729643101128,0.002,67190.0,67183.0,0.119076]
[1729643101362,0.00182094,67190.0,67186.0,0.000825]
[1729643101608,0.00742898,67189.0,67186.0,0.000825]
[1729643102030,0.00182094,67190.0,67186.0,0.000825]
[1729643102273,0.00742898,67188.0,67186.0,0.000825]
[1729643102483,0.00182094,67190.0,67186.0,0.000825]
[1729643102693,0.00742898,67187.0,67186.0,0.000825]
[1729643102918,0.01,67191.0,67186.0,0.000825]
[1729643103128,0.00742944,67187.0,67186.0,0.000825]
[1729643103352,0.01,67191.0,67186.0,0.000825]
[1729643103572,0.00742934,67187.0,67186.0,0.000825]
[1729643103778,0.01,67191.0,67186.0,0.000825]
[1729643103986,0.0001774,67267.0,67186.0,0.000825]
[1729643103987,0.00742934,67187.0,67186.0,0.119897]
[1729643104212,0.01,67198.0,67188.0,0.119068]
[1729643104423,0.22203637,67192.0,67191.0,0.119063]
[1729643104626,0.00742744,67197.0,67191.0,0.119063]
[1729643104853,0.0074279,67192.0,67191.0,0.119063]
[1729643105071,0.01,67198.0,67191.0,0.119063]
[1729643105275,0.04166364,67198.0,67191.0,0.119063]
[1729643105468,0.00742744,67197.0,67191.0,0.119063]
[1729643106312,0.00742744,67197.0,67186.0,0.000825]
[1729643106542,0.00742744,67197.0,67189.0,0.119067]
[1729643106776,0.00742744,67197.0,67190.0,0.119064]
[1729643109874,0.00742744,67197.0,67190.0,0.23813]
[1729643110143,0.01,67200.0,67192.0,0.119061]
[1729643110431,0.01,67200.0,67190.0,0.23813]
[1729643110432,0.01,67198.0,67190.0,0.23813]
[1729643110678,0.005,67198.0,67193.0,0.119059]
[1729643110926,0.01,67200.0,67194.0,0.119057]
[1729643111156,0.00742844,67197.0,67194.0,0.119057]
[1729643111393,0.01,67200.0,67194.0,0.119057]
[1729643111868,0.00742859,67199.0,67194.0,0.119057]
[1729643113075,0.00742859,67199.0,67192.0,0.238123]
[1729643113076,0.00742859,67199.0,67193.0,0.35718]
[1729643113308,0.00742859,67199.0,67193.0,0.11906]
[1729643113552,0.00742859,67199.0,67191.0,0.14895915]
[1729643113815,0.00742859,67199.0,67194.0,0.119057]
[1729643114051,0.00742859,67199.0,67192.0,0.357183]
[1729643114275,0.00742859,67199.0,67192.0,0.11906]
[1729643114545,0.00742859,67199.0,67194.0,0.119057]
[1729643115503,0.00742859,67199.0,67192.0,0.357183]
[1729643115735,0.00742859,67199.0,67193.0,0.119059]
[1729643115961,0.00742859,67199.0,67191.0,0.14895915]
[1729643116184,0.00742859,67199.0,67194.0,0.119056]
[1729643117158,0.00742859,67199.0,67195.0,0.119055]
[1729643118106,0.00742859,67199.0,67193.0,0.357175]
[1729643118360,0.00742859,67199.0,67194.0,0.119057]
[1729643118561,0.00742859,67199.0,67195.0,0.119055]
[1729643119070,0.00742859,67199.0,67198.0,0.119051]
[1729643119584,0.00165,67200.0,67198.0,0.119051]
[1729643120073,0.00738013,67199.0,67198.0,0.119051]
[1729643120593,0.00165,67200.0,67197.0,0.119052]
[1729643120818,0.00165,67200.0,67195.0,0.119055]
[1729643121047,0.00165,67200.0,67193.0,0.238117]
[1729643121048,0.00738013,67199.0,67193.0,0.238117]
[1729643121292,0.00738013,67199.0,67198.0,0.119051]
[1729643121841,0.00165,67200.0,67198.0,0.14895915]
[1729643122117,0.00165,67200.0,67199.0,0.26800815]
[1729643123083,0.00165,67200.0,67188.0,0.1]
[1729643123337,0.00165,67200.0,67194.0,0.1]
[1729643123338,0.17188799,67199.0,67194.0,0.1]
[1729643123813,0.00740331,67198.0,67194.0,0.219057]
[1729643124063,0.00922425,67198.0,67194.0,0.1]
[1729643124315,0.00740331,67198.0,67194.0,0.219058]
[1729643124563,0.00740331,67198.0,67194.0,0.1]
[1729643124788,0.00740331,67198.0,67190.0,0.32203637]
[1729643125028,0.00740331,67198.0,67195.0,0.119054]
[1729643125515,0.00740331,67198.0,67196.0,0.119053]
[1729643126255,0.00740331,67198.0,67197.0,0.119052]
[1729643126728,0.00165,67200.0,67197.0,0.119052]
[1729643126958,0.00165,67200.0,67198.0,0.11905]
[1729643127202,0.00740158,67199.0,67198.0,0.11905]
[1729643127575,0.00740158,67199.0,67197.0,0.119051]
[1729643127862,0.00740158,67199.0,67197.0,0.119052]
[1729643129646,0.00740158,67199.0,67198.0,0.119051]
[1729643130068,0.00165,67200.0,67198.0,0.119051]
[1729643130277,0.00165,67200.0,67197.0,0.238105]
[1729643130509,0.00740216,67199.0,67198.0,0.119051]
[1729643130947,0.00165,67200.0,67198.0,0.119051]
[1729643131132,0.00740268,67199.0,67198.0,0.119051]
[1729643132716,0.00165,67200.0,67199.0,0.119049]
[1729643134484,0.00905375,67200.0,67199.0,0.119049]
[1729643134709,0.00816908,67200.0,67199.0,0.119049]
[1729643134929,0.00816908,67200.0,67199.0,0.36800815]
[1729643135383,0.00076533,67200.0,67199.0,0.36800815]
[1729643136077,0.00076533,67200.0,67198.0,0.1]
[1729643136314,0.00076533,67200.0,67193.0,0.1]
[1729643136526,0.00076533,67200.0,67199.0,0.219049]
[1729643137955,0.00817036,67200.0,67199.0,0.219049]
[1729643138429,0.00076533,67200.0,67199.0,0.219049]
[1729643141498,0.00076533,67200.0,67199.0,0.21922806]
[1729643141701,0.00076533,67200.0,67199.0,0.219049]
[1729643143692,0.00076533,67200.0,67199.0,0.45120815]
[1729643145898,0.00076533,67200.0,67199.0,0.36800815]
[1729643146151,0.00076533,67200.0,67199.0,0.32856279]
[1729643152379,0.00076533,67200.0,67199.0,0.17960364]
[1729643152636,0.00076533,67200.0,67196.0,0.1]
[1729643153086,0.00729575,67199.0,67196.0,0.1]
[1729643153301,0.00729575,67199.0,67198.0,0.119051]
[1729643153744,0.00729575,67199.0,67196.0,0.1]
[1729643153997,0.00729575,67199.0,67198.0,0.119051]
[1729643160868,0.01729575,67199.0,67192.0,0.238122]
[1729643161111,0.02734186,67199.0,67191.0,0.37099552]
[1729643161353,0.02734186,67199.0,67196.0,0.119053]
[1729643161592,0.01729575,67199.0,67196.0,0.119053]
[1729643161828,0.01729575,67199.0,67198.0,0.000825]
[1729643163209,0.01729575,67199.0,67198.0,0.119876]
[1729643163638,0.01729575,67199.0,67198.0,0.000825]
[1729643174738,0.01894575,67199.0,67198.0,0.000825]
[1729643178759,0.02076669,67199.0,67198.0,0.000825]
[1729643179480,0.01894575,67199.0,67198.0,0.000825]
[1729643181084,0.01894575,67199.0,67198.0,0.081925]
[1729643181321,0.01165,67199.0,67198.0,0.081925]
[1729643182425,0.00165,67199.0,67198.0,0.78401773]
[1729643182682,0.00165,67199.0,67198.0,0.55900512]
[1729643183840,0.00165,67199.0,67198.0,0.95732425]
[1729643184053,0.00165,67199.0,67198.0,0.62639697]
[1729643184297,0.00165,67199.0,67198.0,0.71557591]
[1729643184504,0.00165,67199.0,67198.0,0.71551459]
[1729643185141,0.002,67206.0,67205.0,0.43671706]
[1729643185367,0.002,67206.0,67205.0,0.82645803]
[1729643185588,0.002,67206.0,67205.0,0.83645803]
[1729643185824,0.002,67206.0,67205.0,0.90329467]
[1729643186587,0.002,67206.0,67205.0,0.83645803]
[1729643187241,0.22203637,67217.0,67216.0,0.336519]
[1729643187467,0.001686,67227.0,67220.0,0.033]
[1729643187688,0.001686,67227.0,67220.0,0.88073996]
[1729643187689,0.22203637,67226.0,67220.0,0.88073996]
[1729643187906,0.001686,67227.0,67222.0,0.01017906]
[1729643188119,0.001686,67227.0,67222.0,0.40114621]
[1729643188562,0.001686,67227.0,67222.0,0.61892803]
[1729643190380,0.001686,67227.0,67222.0,0.57109062]
[1729643190593,0.001686,67227.0,67222.0,0.40114621]
[1729643209367,0.001686,67227.0,67222.0,0.36796715]
[1729643209583,0.001686,67227.0,67222.0,0.53791156]
[1729643209787,0.001686,67227.0,67222.0,0.54291156]
[1729643210427,0.001686,67227.0,67222.0,0.76529062]
[1729643211048,0.001686,67227.0,67222.0,0.78829062]
[1729643212305,0.001686,67227.0,67222.0,0.72708328]
[1729643212520,0.001686,67227.0,67222.0,0.83582035]
[1729643218692,0.001686,67227.0,67222.0,0.96582035]
[1729643221419,0.001686,67236.0,67235.0,0.25216406]
[1729643221788,0.001686,67236.0,67235.0,0.69699735]
[1729643222014,0.001686,67236.0,67235.0,0.50986028]
[1729643222735,0.001686,67236.0,67235.0,0.61859735]
[1729643222974,0.001686,67236.0,67235.0,0.50986028]
[1729643223203,0.001686,67236.0,67235.0,0.61859735]
[1729643226605,0.001686,67236.0,67235.0,0.80909232]
[1729643227305,0.00121161,67236.0,67235.0,0.80909232]
[1729643227531,0.00121161,67236.0,67235.0,0.83796908]
[1729643228538,0.00121161,67236.0,67235.0,0.77152663]
[1729643229011,0.00121161,67236.0,67235.0,0.88261286]
[1729643229270,0.00121161,67236.0,67235.0,0.88261285]
[1729643229500,0.00121161,67236.0,67235.0,0.77152663]
[1729643232610,0.00121161,67236.0,67235.0,0.90441154]
[1729643233410,0.00121161,67236.0,67235.0,0.77152663]
[1729643233637,0.00121161,67236.0,67235.0,0.90441154]
[1729643234253,0.00121161,67236.0,67235.0,0.90501222]
[1729643236173,0.00121161,67236.0,67235.0,0.77152663]
[1729643236822,0.00121161,67236.0,67235.0,0.90501222]
[1729643238160,0.00121161,67236.0,67235.0,0.77152663]
[1729643238384,0.00121161,67236.0,67235.0,0.90501222]
[1729643242126,0.00121161,67236.0,67235.0,0.77152663]
[1729643242387,0.00121161,67236.0,67235.0,0.37467343]
[1729643242587,0.13871161,67236.0,67235.0,0.37467343]
[1729643244312,0.00121161,67236.0,67235.0,0.4834105]
[1729643244541,0.00121161,67236.0,67235.0,0.37485249]
[1729643244759,0.00121161,67236.0,67235.0,0.4415697]
[1729643244979,0.00121161,67236.0,67235.0,0.55030677]
[1729643245186,0.00121161,67236.0,67235.0,0.4415697]
[1729643245368,0.00121161,67236.0,67235.0,0.37467343]
[1729643245607,0.00121161,67236.0,67235.0,0.44139439]
[1729643246669,0.00121161,67236.0,67235.0,0.37467343]
[1729643246881,0.00121161,67236.0,67235.0,0.44139822]